Cogmind - Beta 15 @@@ ROGUE MODE // 2025.10.10 @ 21:16:06 Player: PlatypusCo Result: Destroyed by G-47 Trooper with Particle Gun Performance ------------- Evolutions (2) 1000 Regions Visited (3) 600 Robots Destroyed (32) 160 Value Destroyed (1220) 1220 Prototype IDs (0) 0 Alien Tech Used (0) 0 Bonus (-57) -57 TOTAL SCORE: 2923 Bonus ------- Friendly Fire -57 Cogmind --------- Core Integrity 0/550 Matter 300/300 Energy 220/220 System Corruption 0% Temperature Cool (63) Movement Treading (160) Location -8/Materials Parts ------- > --- POWER (2) -------- Light Nuclear Core Light Nuclear Core > --- PROPULSION (3) --- Light Treads Light Treads VSS Leg > --- UTILITY (4) ------ Improved Heat Sink Small Storage Unit Advanced Visual Processing Unit Light Armor Plating > --- WEAPON (2) ------- Particle Gun Particle Gun > --- INVENTORY (8) ---- Light Treads Light Treads Aluminum Leg Advanced Beam Rifle Faulty Advanced Beam Rifle Advanced Beam Rifle Peak State ------------ > --- POWER ------------ Deuterium Engine Light Nuclear Core > --- PROPULSION ------- Carbon-fiber Leg VSS Leg > --- UTILITY ---------- Small Storage Unit Advanced Weight Redist. System Advanced Visual Processing Unit Hardened Medium Armor Plating > --- WEAPON ----------- Particle Gun Heavy Assault Rifle > --- INVENTORY -------- Light Nuclear Core Light Treads Light Treads Aerolev Unit Aerolev Unit Advanced Beam Rifle Advanced Beam Rifle Advanced Beam Rifle [Rating: 28] Favorites ----------- Power Ion Engine Engine Ion Engine Power Core Light Nuclear Core Propulsion Light Treads Treads Light Treads Leg VSS Leg Wheel Compact Wheel Utility Small Storage Unit Device Heat Sink Storage Small Storage Unit Processor Advanced Visual Processing Unit Hackware Hacking Suite Protection Hardened Medium Armor Plating Weapon Medium Laser Energy Gun Medium Laser Ballistic Gun Heavy Assault Rifle Ballistic Cannon Light Cannon Launcher Grenade Launcher Build | -11 -10 -10 -8 ------- Run | Yrd Mat Sub Mat Slots Evolved 4 | . . . 4 Power 1 | . . . 1 Propulsion 1 | . . . 1 Utility 2 | . . . 2 Weapon . | . . . . Parts Attached 38 | 6 1 2 29 Power 8 | 1 . . 7 Engine 5 | 1 . . 4 Core 3 | . . . 3 Reactor . | . . . . Propulsion 9 | 2 . . 7 Treads 5 | 2 . . 3 Leg 2 | . . . 2 Wheel 2 | . . . 2 Hover . | . . . . Flight . | . . . . Utility 10 | 1 1 . 8 Device 4 | . 1 . 3 Storage 1 | 1 . . . Processor 1 | . . . 1 Hackware 1 | . . . 1 Protection 3 | . . . 3 Artifact . | . . . . Weapon 11 | 2 . 2 7 Energy Gun 7 | 2 . . 5 Energy Cannon . | . . . . Ballistic Gun 2 | . . . 2 Ballistic Cannon 1 | . . 1 . Launcher 1 | . . 1 . Special Weapon . | . . . . Impact Weapon . | . . . . Slashing Weapon . | . . . . Piercing Weapon . | . . . . Special Melee Weapon . | . . . . Unidentified Prototypes . | . . . . Parts Lost 18 | . . . 18 Power 3 | . . . 3 Propulsion 3 | . . . 3 Utility 6 | . . . 6 Weapon 6 | . . . 6 Highest Loss Streak 13 | . . . 13 To Critical Strikes . | . . . . Average Backups 5 | 3 5 5 5 Power 1 | . 1 1 1 Propulsion 1 | 1 2 . 1 Utility . | . . 1 . Weapon 1 | . 1 2 2 Tool/Special . | . . . . Unused Backups 11 | . 1 2 8 Power . | . . . . Propulsion 6 | . . 2 4 Utility . | . . . . Weapon 5 | . 1 . 4 Tool/Special . | . . . . Average Slot Usage (%) 85 | . 93 100 73 Engine 12 | . 14 14 12 Core 2 | . . . 5 Treads 16 | . 28 28 7 Leg 3 | . . . 6 Wheel 1 | . . . 3 Device 9 | . 7 14 6 Storage 11 | . 14 14 9 Processor 2 | . . . 3 Protection 1 | . . . 3 Energy Gun 15 | . 28 19 8 Ballistic Gun 2 | . . . 4 Ballistic Cannon 1 | . . 1 2 Launcher 2 | . . 7 . Peak Build Rating 28 | 6 7 8 28 Average Rating 11 | 4 6 7 16 On Entrance 5 | . 6 7 8 Naked Turns . | . . . . Heaviest Build 33 | 14 15 16 33 Greatest Support 40 | 40 40 40 40 Greatest Overweight (x) 3 | . . . 3 Average Overweight (x) . | . . . . Largest Inventory Capacity 8 | 8 8 8 8 Average Capacity 7 | 6 8 8 8 Most Carried 8 | 5 7 8 8 Average Carried 5 | 3 5 6 5 Final Capacity 8 | 8 8 8 8 Final Carried 7 | 4 6 7 6 Class Distribution -------------------- 76% | Mutant 23% | Scavenger-Mutant Dominant Class ---------------- Mutant | -10/Materials Mutant | -10/Subcaves Mutant | -8/Materials Resources | -11 -10 -10 -8 ----------- Run | Yrd Mat Sub Mat Matter Collected 881 | 205 55 60 561 Remotely . | . . . . Salvage Created 1326 | . 170 216 940 Parts 72 | . 8 20 44 Haulers Intercepted . | . . . . Recyclers Shooed . | . . . . Parts Field Recycled . | . . . . Retrieved Matter . | . . . . Parts Self-Destructed 3 | . . 3 . Prevented . | . . . . Kills | -11 -10 -10 -8 ------- Run | Yrd Mat Sub Mat Combat Hostiles Destroyed 27 | . 3 6 18 Guns 19 | . 3 1 15 Cannons 2 | . . . 2 AOE 6 | . . 5 1 Classes Destroyed 9 | . 2 1 6 Worker 2 | . . . 2 Builder 1 | . . . 1 Recycler 1 | . . . 1 Watcher 1 | . 1 . . Grunt 15 | . 3 1 11 Brawler 2 | . . . 2 Duelist 1 | . . . 1 Sentry 4 | . . . 4 Subdweller 5 | . . 5 . Best Kill Streak 5 | . 2 5 5 Combat Bots Only 5 | . 2 5 3 Max Kills in Single Turn 4 | . 1 4 2 Gunslinging . | . . . . Exploded 4 | . . 4 1 Melee . | . . . . Uniques/NPCs Destroyed . | . . . . Combat | -11 -10 -10 -8 -------- Run | Yrd Mat Sub Mat Hostile Shots Fired 217 | . 11 13 193 Missed 59 | . 4 5 50 Hits 158 | . 7 8 143 Melee 4 | . . . 4 Projectile 154 | . 7 8 139 AOE 1 | . . 1 . Critical Strikes 8 | . . . 8 Damage Taken 2673 | . 81 322 2270 Core 662 | . 11 91 560 Absorbed by Shields . | . . . . Core Remaining (%) 79 | 100 . 59 . Volleys Fired 100 | . 11 12 77 Largest 2 | . 2 2 2 Hottest 130 | . 90 90 130 Shots Fired 184 | . 22 22 140 Gun 146 | . 22 16 108 Cannon 33 | . . 2 31 Launcher 5 | . . 4 1 Special . | . . . . Kinetic 77 | . . 2 75 Thermal 83 | . 11 11 61 Explosive 5 | . . 4 1 Electromagnetic 19 | . 11 5 3 Robot Hit Streak 13 | . 6 10 13 Robot Miss Streak 4 | . 2 1 4 Penetration Max . | . . . . Secondary Targets 2 | . . . 2 Max Gunslinging Chain 1 | . . . 1 Shots Hit Robots 126 | . 14 14 98 Core Hits 68 | . 7 15 46 Critical Kills . | . . . . Critical Parts Destroyed . | . . . . Critical Strikes 4 | . 1 1 2 Burn 3 | . . 1 2 Corrupt 1 | . 1 . . Melee Attacks . | . . . . Impact . | . . . . Slashing . | . . . . Piercing . | . . . . Sneak Attacks . | . . . . Combat Hostiles . | . . . . Follow-up Attacks . | . . . . Damage Inflicted 2427 | . 199 592 1636 Guns 1483 | . 199 142 1142 Cannons 416 | . . 19 397 Explosions 501 | . . 431 70 Melee . | . . . . Ramming 27 | . . . 27 Kinetic 904 | . . 19 885 Thermal 811 | . 73 99 639 Explosive 501 | . . 431 70 Electromagnetic 184 | . 126 43 15 Impact . | . . . . Slashing . | . . . . Piercing . | . . . . Highest Corruption . | . . . . Average Corruption . | . . . . Corruption Purged . | . . . . Corruption Blocked . | . . . . Overload Shots . | . . . . Overflow Damage . | . . . . Projectiles . | . . . . Explosions . | . . . . Melee . | . . . . Knockbacks 6 | . . . 6 Impact . | . . . . Kinetic 6 | . . . 6 Secondary . | . . . . Self-Inflicted Damage 13 | . . . 13 Shots . | . . . . Rammed 3 | . . . 3 Targets Rammed 3 | . . . 3 Kicked . | . . . . Crushed . | . . . . Highest Temperature 447 | . 135 . 447 Average Temperature 135 | . 42 . 149 Received Heat Transfer 1362 | . 45 66 1251 Effects 3 | . . . 3 Matter Decay 1 | . . . 1 Short Circuit 2 | . . . 2 Siege Activations . | . . . . Martial Activations . | . . . . Shielding Activations . | . . . . Robots Disrupted . | . . . . Combat Hostiles . | . . . . Robots Corrupted . | . . . . Combat Hostiles . | . . . . Parts Fried 1 | . 1 . . Impact Corruptions . | . . . . Robots Melted . | . . . . Combat Hostiles . | . . . . Parts Melted . | . . . . Heat Transferred 2368 | . 222 370 1776 Parts Sabotaged . | . . . . Parts Stolen . | . . . . Parts Stripped . | . . . . Power Chain Reactions . | . . . . Alert | -11 -10 -10 -8 ------- Run | Yrd Mat Sub Mat Maximum Alert Level . | . . . . Low Security (%) 100 | 100 100 . 100 Level 1 . | . . . . Level 2 . | . . . . Level 3 . | . . . . Level 4 . | . . . . Level 5 . | . . . . High Security . | . . . . Max Security . | . . . . Peak Influence 133 | . 50 . 133 Initial . | . . . . Average 31 | . 13 . 38 Influence Increases 697 | . 108 30 559 Destroy 0b10 Robot/C 440 | . 60 20 360 Destroy 0b10 Robot/NC 25 | . 5 . 20 Destroy Leader 112 | . 12 10 90 Successful Hack 20 | . 16 . 4 Disable Machine 15 | . . . 15 Destroy Structure 10 | . . . 10 Lose Combat Pursuer 75 | . 15 . 60 Influence Decreases 608 | . 86 52 470 Entered New Map 11 | . . 11 . Time Decay 427 | . 86 41 300 Lost Part 160 | . . . 160 Purge Threat 10 | . . . 10 Squads Dispatched 3 | . . . 3 Investigation . | . . . . Extermination . | . . . . Reinforcement 3 | . . . 3 Assault . | . . . . Garrison . | . . . . Intercept . | . . . . Searches Triggered . | . . . . Construction Impeded . | . . . . Haulers Reinforced . | . . . . Active Scanning Responses . | . . . . Cargo Convoy Interrupts . | . . . . Stealth | -11 -10 -10 -8 --------- Run | Yrd Mat Sub Mat Distress Signals 3 | . 1 . 2 Communications Jammed . | . . . . Distress Signals . | . . . . Times Spotted 57 | . 7 13 37 Peak Tracking Total 8 | . 3 7 8 Tactical Retreats 4 | . 1 . 3 Traps | -11 -10 -10 -8 ------- Run | Yrd Mat Sub Mat Traps Triggered 3 | . . 2 1 Indirectly . | . . . . Trap Hack Attempts . | . . . . Triggered . | . . . . Disarmed . | . . . . Reprogrammed . | . . . . Reused . | . . . . Traps Extracted . | . . . . Installed . | . . . . Triggered . | . . . . Machines | -11 -10 -10 -8 ---------- Run | Yrd Mat Sub Mat Machines Disabled 1 | . . . 1 Max in Single Turn 1 | . . . 1 Garrison Access 1 | . . . 1 Machines Repaired . | . . . . Machines Dismantled . | . . . . Machines Sabotaged . | . . . . Overloaded Fab Kills . | . . . . Hacking | -11 -10 -10 -8 --------- Run | Yrd Mat Sub Mat Machines Accessed 4 | . 1 . 3 Terminals 3 | . 1 . 2 Fabricators . | . . . . Repair Stations . | . . . . Recycling Units . | . . . . Scanalyzers . | . . . . Garrison Access 1 | . . . 1 Total Hacks 10 | . 2 . 8 Successful 5 | . 1 . 4 Failed 5 | . 1 . 4 Catastrophic 2 | . . . 2 Database Lockouts . | . . . . Manual 2 | . . . 2 Terminals 9 | . 2 . 7 Fabricators . | . . . . Repair Stations . | . . . . Recycling Units . | . . . . Scanalyzers . | . . . . Garrison Access 1 | . . . 1 Terminal Hacks 4 | . 1 . 3 Record 1 | . . . 1 Branch Access Points 1 | . 1 . . Emergency Access Points 1 | . . . 1 Unreport Threat 1 | . . . 1 Fabricator Hacks . | . . . . Repair Station Hacks . | . . . . Recycling Unit Hacks . | . . . . Scanalyzer . | . . . . Garrison Access Hacks 1 | . . . 1 Seal Access 1 | . . . 1 Unauthorized Hacks . | . . . . Terminals . | . . . . Fabricators . | . . . . Repair Stations . | . . . . Recycling Units . | . . . . Scanalyzers . | . . . . Garrison Access . | . . . . Data Cores Recovered . | . . . . Used . | . . . . Hacking Detections 3 | . 1 . 2 Full Trace Events 1 | . . . 1 Feedback Events . | . . . . Feedback Blocked . | . . . . Robot Schematics Acquired . | . . . . Robots Built . | . . . . Authchips . | . . . . Time . | . . . . Total Robot Build Rating . | . . . . Part Schematics Acquired . | . . . . Parts Built . | . . . . Authchips . | . . . . Time . | . . . . Total Part Build Rating . | . . . . Parts Repaired . | . . . . Time . | . . . . Parts Recycled . | . . . . Recycled Matter . | . . . . Retrieved Matter . | . . . . Retrieved Components . | . . . . Parts Scanalyzed . | . . . . Part Schematics Acquired . | . . . . Parts Damaged . | . . . . Bothacking | -11 -10 -10 -8 ------------ Run | Yrd Mat Sub Mat Used RIF Installer . | . . . . Robots Hacked . | . . . . Non-combat . | . . . . Combat . | . . . . Robot Hacks Applied . | . . . . Relay Couplers Released . | . . . . Fabnet Peak Effective % . | . . . . Robots Rewired . | . . . . Allies Hacked . | . . . . Hacks Repelled . | . . . . Allies | -11 -10 -10 -8 -------- Run | Yrd Mat Sub Mat Total Allies . | . . . . Largest Group . | . . . . Highest-Rated Group . | . . . . Highest-Rated Ally . | . . . . Total Orders . | . . . . Ally Attacks . | . . . . Total Damage . | . . . . Kills . | . . . . Allies Corrupted . | . . . . Allies Melted . | . . . . Intel | -11 -10 -10 -8 ------- Run | Yrd Mat Sub Mat Active Infowar (turns) 398 | . . . 398 Optics 398 | . . . 398 Robot Analysis Total . | . . . . Derelict Logs Recovered . | . . . . Drone Launches . | . . . . Drone Recoveries . | . . . . Exploration | -11 -10 -10 -8 ------------- Run | Yrd Mat Sub Mat Turns Passed 1825 | 64 284 537 940 Spaces Moved 970 | 35 154 298 483 Core 10 | 6 . . 4 Treads 662 | 29 154 298 181 Legs 109 | . . . 109 Wheels 189 | . . . 189 Hover . | . . . . Flight . | . . . . Fastest Speed 50 | 50 160 160 90 Average Speed 145 | 141 160 160 131 Slowest Speed 270 | 160 160 160 270 Overloaded Moves . | . . . . Propulsion Burnouts . | . . . . Robots Hopped . | . . . . Potential Cave-ins . | . . . . Cave-ins Triggered . | . . . . Exploration Rate (%) 26 | 3 36 18 49 Regions Visited 3 Branch Regions 1 Pre-discovered Areas . | . . . . Known Exits Taken . | . . . . Unknown Exits Taken 3 | 1 1 1 . Scrap Searched . | . . . . Spaces Dug . | . . . . Terrain Destroyed 20 | . . 10 10 Melee . | . . . . Projectile . | . . . . AOE 20 | . . 10 10 Terrain Rammed . | . . . . Walls Destroyed . | . . . . Machines Disabled . | . . . . Actions | -11 -10 -10 -8 --------- Run | Yrd Mat Sub Mat Total 1206 | 49 170 338 649 Wait 29 | . . 21 8 Move 967 | 34 153 297 483 Hop . | . . . . Pick Up 46 | 9 4 2 31 Fast Attach 4 | 1 . . 3 Attach 37 | 5 1 2 29 Detach 3 | . . 2 1 Swap 3 | . . . 3 Drop 14 | . 1 2 11 Fire 100 | . 11 12 77 Melee . | . . . . Ram 3 | . . . 3 Kick . | . . . . Crush . | . . . . Escape Stasis . | . . . . Rewire . | . . . . Trap . | . . . . Miscellaneous . | . . . . Route ------- -11/Scrapyard -10/Materials (discovered 3 exits: [*Mat] / Min / [*Sub]) -10/Subcaves (discovered 2 exits: *Mat x2) -8/Materials History --------- Turn | Location | Event 37 | -11/Scrapyard | Discovered new exit (range 16) 65 | -11/Scrapyard | Entered Materials 76 | -10/Materials | Identified exit to Mines 203 | -10/Materials | Discovered new exit (range 8) 317 | -10/Materials | Build established: Mutant 334 | -10/Materials | Discovered new exit (range 10) 349 | -10/Materials | Entered Subcaves 349 | -10/Subcaves | Discovered new exit (range 5) 350 | -10/Subcaves | Approached by a straggling Scientist 625 | -10/Subcaves | Ambushed by swarm of Subdwellers 628 | -10/Subcaves | Ambushed by Subdwellers from Twisted Machinery 628 | -10/Subcaves | Ambushed by Subdwellers from Twisted Machinery 681 | -10/Subcaves | A swath of the cavern ceiling suddenly collapsed 860 | -10/Subcaves | Discovered new exit (range 6) 886 | -10/Subcaves | Entered Materials 886 | -8/Materials | Evolved 4 slots: Power x1, Propulsion x1, Utility x2 1196 | -8/Materials | Lost 13 parts (2p2n4u5w) 1277 | -8/Materials | Core integrity fell below 50% 1560 | -8/Materials | Core integrity fell below 20% 1826 | -8/Materials | Destroyed by G-47 Trooper with Particle Gun Last Messages --------------- 01788_ U-05 Engineer works on Atomic Centrifuge. 01789_ Atomic Centrifuge comes online. 01790_ K-01 Serf collects debris. 01790_ U-05 Engineer works on Atomic Centrifuge. 01793_ K-01 Serf collects debris. 01794_ U-05 Engineer works on Atomic Centrifuge. 01794_ O-16 Technician: "IFF HANDSHAKE FAILED. SECURING TERMINAL." 01795_ U-05 Engineer works on Atomic Centrifuge. 01796_ K-01 Serf collects debris. 01797_ U-05 Engineer works on Atomic Centrifuge. 01799_ K-01 Serf collects debris. 01800_ U-05 Engineer works on Atomic Centrifuge. 01800_ O-16 Technician uses terminal to summon reinforcements. 01800_ ALERT: Hostiles spotted, dispatching reinforcements to Terminal M011. 01800_ O-16 Technician locks terminal. 01801_ U-05 Engineer completes Atomic Centrifuge. 01802_ K-01 Serf cleans the Atomic Centrifuge. 01807_ K-01 Serf collects debris. 01822_ Critical hit (Burn: +37). Map ----- +----------------------------------------------------+ | ?????????????????????????????????????? | | ?????????????????????????????????????? | | ?????????????????????????????????????? | | ?????????????????????????????????????? | | ?????????????????????????????????????? | | ?????????????????????????????????????? | | ?????????????????????????????????????? | | ?????????????????????????????????????? | | ?????????????????????????????????????? | | ?????????????????????????????????????? | | ?????????????????????????????????????? | | ?????????????????????????????????????? | | ?????????????????????????????????????? | | ?????????????????????????????????????? | | ?????????????????????????????????????? | | ?????????????????????????????????????? | | ?????????????????????????????????????? | | ?????????????????????????????????????? | | ?????????????????????????????????????? | | ?????????????????????????????????????? | | ?????????????????????????????????????? | | ?????????????????????????????????????? | | ?????????????????????????????????????? | | ?????????????????????????????????????? | | ?????????????????????####### ###?????? | | ?????????????????????# @ gg + # | | ?????????????????????# ###/###?????? | | ###??????????????????# #???????????? | | #####??????????????# +???????????? | | ?????????????# ###???????????? | | | ?????????????# #?????????????? | | ????????????# #?????????????? | | ###### ????????????# #??????????#??? | | !????# #####+####### ########## #??? | | ??# #??? | | ?? ## #??? | | ? ??## ! [!* #??? | | "T"?#T [! ] ##?? | | ""???# [* "#?? | | ????# """ """ """ T#?? | | +##### """ %""" """ "#?? | | """ """ """ ##?? | | ! #??? | | #??? | | ####### #??? | | #???# ######## ###+##+#??? | | #???# # # #?????????? | | " ????# # # #?????????? | | " ????# + # #?????????? | | "?????# # """ # #?????????? | +----------------------------------------------------+ Best States ------------- Heat Dissipation 51 Energy Generation 23 Energy Capacity 400 Matter Stores 300 Matter Capacity 300 Sight Range 20 Terrain Scan Density 10 Additional Mass Support 9 Armor Coverage 800 Evasion (%) 55 Recoil Reduction 2 Offensive Hacking 10 Item Schematics ----------------- None Robot Schematics ------------------ None Fabricated ------------ Nothing Repaired ---------- Nothing Alien Tech Used ----------------- None Achievements -------------- None Challenges ------------ None Game ------ Seed DeflectorAccelerationSteel Manual? 0 Play Time 00:26:25 Cumulative 6.6 hours Start 2025.10.10 @ 20:46:24 End 2025.10.10 @ 21:16:06 Sessions 1 Manual Loads 0 Difficulty Rogue Special Mode None Game No. 14 Rogue 14 Adventurer 0 Explorer 0 Win Type - Total 0 Types 0/0/0/0/0/0/0/0/0/0 Lore% 8 Gallery% 13 Achievement% 14 Wizard Run 0 Options --------- Layout 0 ASCII 0 Keyboard 0 Movement Mouse Keybinds 0 Fullscreen 1 Font 24/Smallcaps Map View 76x56 Zoom Use 0% Tactical HUD 1 Map Filters NONE Filters NONE Steam 1 RUN: b73fb74b-1772-4957-9209-8620c9cf2dd9